bitfinex/quotes_ETHUSD_20251213
["timestamp","ask_amount","ask_price","bid_price","bid_amount"]
[1765641066065,0.29902793,3109.9,3109.7,6.93948856]
[1765641066262,0.4546,3110.0,3109.7,6.93948856]
[1765641066445,0.29902083,3109.9,3109.7,6.93948856]
[1765641066647,0.4546,3110.0,3109.7,6.93948856]
[1765641066945,0.29902074,3109.9,3109.7,6.93948856]
[1765641067142,0.9319,3110.0,3109.7,6.93948856]
[1765641067348,0.29901153,3109.9,3109.7,6.93948856]
[1765641067667,0.4773,3110.2,3109.7,6.93948856]
[1765641067866,0.2990225,3110.1,3109.7,6.93948856]
[1765641068162,0.2990225,3110.0,3109.7,6.93948856]
[1765641068471,0.001,3110.5,3109.8,5.39956597]
[1765641068636,0.001,3110.5,3110.4,0.4398]
[1765641068837,0.30001856,3110.5,3110.4,0.4398]
[1765641069137,0.30001856,3110.5,3110.4,3.65482057]
[1765641070676,0.30001856,3110.5,3110.4,4.09462057]
[1765641070845,0.30001856,3110.5,3110.4,5.15295644]
[1765641071467,0.30001856,3110.5,3110.4,9.41877355]
[1765641071675,0.001,3110.5,3110.4,9.41877355]
[1765641071972,0.001,3110.5,3110.4,9.85857355]
[1765641073546,0.001,3110.5,3110.4,9.41877355]
[1765641073747,0.001,3110.5,3110.4,9.85857355]
[1765641074277,0.29996776,3110.5,3110.4,9.85857355]
[1765641074479,0.001,3110.5,3110.4,9.85857355]
[1765641076178,0.001,3110.5,3110.4,9.85711823]
[1765641076475,0.001,3110.5,3110.4,9.98584963]
[1765641077880,0.001,3110.5,3110.4,5.28168784]
[1765641084270,0.001,3110.5,3110.4,5.86216313]
[1765641084673,0.001,3110.5,3110.4,5.89431333]
[1765641085275,0.001,3110.5,3110.4,6.29981733]
[1765641085575,0.001,3110.5,3110.4,10.97183374]
[1765641085777,0.001,3110.5,3110.4,6.26766713]
[1765641086097,0.001,3110.5,3110.4,6.29981733]
[1765641086248,0.001,3110.5,3110.4,14.39098394]
[1765641086448,0.001,3110.5,3110.4,14.35883374]
[1765641086849,0.001,3110.5,3110.4,14.4532809]
[1765641088585,0.001,3110.5,3110.4,6.26766713]
[1765641088814,0.001,3110.5,3110.4,11.47983374]
[1765641088987,0.001,3110.5,3110.4,10.97183374]
[1765641089290,0.001,3110.5,3110.4,11.47983374]
[1765641092257,0.001,3110.5,3110.4,5.93036313]
[1765641092856,0.001,3110.5,3110.4,6.37016313]
[1765641095199,0.4799,3110.5,3110.4,3.34375197]
[1765641095406,0.969,3110.5,3110.4,3.21502057]
[1765641097809,0.4799,3110.5,3110.4,3.21502057]
[1765641098389,0.001,3110.5,3110.4,3.65482057]
[1765641098914,0.001,3110.5,3110.4,4.09462057]
[1765641099099,0.001,3110.5,3110.4,5.74625761]
[1765641100526,0.001,3110.5,3110.4,6.7322369]
[1765641101406,0.001,3110.5,3110.4,11.09909951]
[1765641106931,0.001,3110.5,3110.4,11.53889951]
[1765641112028,0.001,3110.5,3110.4,11.53796885]
[1765641112943,0.001,3110.5,3110.4,11.94347285]
[1765641115839,0.001,3110.5,3110.4,11.50367285]
[1765641116063,0.001,3110.5,3110.4,16.6467088]
[1765641117359,0.001,3110.5,3110.4,31.0582018]
[1765641117514,0.001,3110.5,3110.4,28.3654488]
[1765641117719,0.001,3110.5,3110.4,27.5532628]
[1765641117913,0.001,3110.5,3110.4,26.1546408]
[1765641118244,0.001,3110.5,3110.4,25.0592508]
[1765641119309,0.001,3110.5,3110.4,27.3638518]
[1765641119541,0.001,3110.5,3110.4,25.0592508]
[1765641120344,0.001,3110.5,3110.4,14.82247285]
[1765641120545,0.001,3110.5,3110.4,15.33047285]
[1765641125356,0.499,3110.5,3110.4,5.4471329]
[1765641125546,0.9959,3110.5,3110.4,3.34375321]
[1765641126629,0.9959,3110.5,3110.4,3.9242285]
[1765641128732,0.499,3110.5,3110.4,3.9242285]
[1765641129142,0.9959,3110.5,3110.4,3.9242285]
[1765641142573,0.001,3110.5,3110.4,10.74932119]
[1765641143552,0.001,3110.5,3110.4,11.15482519]
[1765641147561,0.001,3110.5,3110.4,11.15244142]
[1765641147762,0.001,3110.5,3110.4,15.85488306]
[1765641148076,0.001,3110.5,3110.4,19.24188306]
[1765641159160,0.001,3110.7,3110.6,7.869819]
[1765641159382,0.001,3110.7,3110.6,21.04284659]
[1765641159583,0.001,3110.7,3110.6,21.48264659]
[1765641159775,0.001,3110.7,3110.6,21.61133533]
[1765641160157,0.001,3110.7,3110.6,26.15728033]
[1765641160362,0.001,3110.7,3110.6,29.33994219]
[1765641160563,0.001,3110.7,3110.6,25.45107019]
[1765641161282,0.001,3110.7,3110.6,26.80263919]
[1765641161585,0.001,3110.7,3110.6,26.48107519]
[1765641162287,0.001,3110.7,3110.6,20.74883419]
[1765641162470,0.001,3110.7,3110.6,28.07260019]
[1765641163392,0.001,3110.7,3110.6,28.39416419]
[1765641163904,0.001,3110.7,3110.6,28.07260019]
[1765641164477,0.001,3110.7,3110.6,28.39416419]
[1765641165991,0.001,3110.7,3110.6,28.07260019]
[1765641166609,0.001,3110.7,3110.6,27.81369219]
[1765641167394,0.001,3110.7,3110.6,27.81182319]
[1765641167893,0.001,3110.7,3110.6,27.34591019]
[1765641168100,0.001,3110.7,3110.6,26.74891019]
[1765641168897,0.9339,3110.7,3110.6,12.19334539]
[1765641169201,0.9339,3110.7,3110.6,11.78784139]
[1765641169489,0.9339,3110.7,3110.6,9.13441953]
[1765641170090,0.9339,3110.7,3110.6,9.53992353]
[1765641176974,0.4585,3110.7,3110.6,9.53992353]
[1765641177575,0.4585,3110.7,3110.6,14.24236517]
[1765641178184,0.4585,3110.7,3110.6,9.53992353]
[1765641178501,0.4585,3110.7,3110.6,10.89812938]
[1765641180778,0.001,3110.7,3110.6,11.33792938]
[1765641181008,0.001,3110.7,3110.6,16.04037102]
[1765641181597,0.001,3110.7,3110.6,16.48017102]
[1765641182504,0.001,3110.7,3110.6,16.04037102]
[1765641182709,0.9686,3110.7,3110.6,15.60057102]
[1765641183089,0.4849,3110.7,3110.6,15.60057102]
[1765641183299,0.4849,3110.7,3110.6,10.89784165]
[1765641184300,0.001,3110.7,3110.6,10.89784165]
[1765641184483,0.001,3110.7,3110.6,11.33764165]
[1765641184885,0.001,3110.7,3110.6,16.03979556]
[1765641187493,0.001,3110.7,3110.6,16.47959556]
[1765641188610,0.001,3110.7,3110.6,19.86659556]
[1765641188985,0.001,3110.7,3110.6,19.42679556]
[1765641189185,0.001,3110.7,3110.6,25.37183756]
[1765641189380,0.001,3110.7,3110.6,24.34394156]
[1765641189584,0.001,3110.7,3110.6,21.92593056]
[1765641192009,0.001,3110.7,3110.6,45.76529456]
[1765641192209,0.001,3110.9,3110.8,19.004927]
[1765641192507,0.001,3110.9,3110.8,29.88141214]
[1765641192693,0.001,3110.9,3110.8,30.32121214]
[1765641192893,0.001,3110.9,3110.8,30.44989094]
[1765641193113,0.001,3111.0,3110.9,0.98597929]
[1765641193304,0.001,3111.2,3111.0,13.77728711]
[1765641193513,0.001,3111.2,3111.1,4.37297929]
[1765641193683,0.001,3111.2,3111.1,5.34702645]
[1765641194015,0.001,3111.2,3111.1,8.56132364]
[1765641194189,0.001,3111.2,3111.1,8.68998754]
[1765641201133,0.001,3111.8,3111.5,4.37297929]
[1765641201316,0.001,3111.8,3111.5,17.49817108]
[1765641201496,0.4849,3111.6,3111.5,17.49817108]
[1765641201697,0.4849,3111.6,3111.5,17.7269367]
[1765641201922,0.4849,3111.6,3111.5,17.72006634]
[1765641202123,1e-08,3111.6,3111.5,19.29371952]
[1765641202318,0.001,3111.8,3111.7,0.405504]
[1765641202724,0.4097,3111.8,3111.7,0.405504]
[1765641203092,0.4097,3111.8,3111.7,1.09426962]
[1765641203810,0.4097,3111.8,3111.7,4.88842232]
[1765641204018,0.8692,3111.8,3111.7,7.24320954]
[1765641205131,0.8692,3111.8,3111.7,4.40944303]
[1765641206038,0.8692,3111.8,3111.7,4.98991832]
[1765641207003,0.8692,3111.8,3111.7,4.48291832]
[1765641227882,0.001,3111.8,3111.7,9.67381762]
[1765641228043,0.001,3111.8,3111.7,10.57902162]
[1765641228244,0.001,3111.8,3111.7,12.42840211]
[1765641232066,0.001,3111.8,3111.7,11.92870211]
[1765641232767,0.6638,3111.8,3111.7,6.33229881]
[1765641233069,1.0654,3111.8,3111.7,4.48291832]
[1765641244146,1.0654,3111.8,3111.7,3.90244303]
[1765641244443,1.3645424,3111.8,3110.7,3.72162054]
[1765641244658,0.7579424,3111.7,3111.3,0.96532084]
[1765641244872,0.2991424,3111.6,3111.3,0.96532084]
[1765641245053,0.4756,3111.4,3111.3,0.96532084]
[1765641245448,0.1959,3111.8,3111.3,1.46532084]
[1765641245746,0.1959,3111.8,3111.3,1.16573201]
[1765641245747,0.29905721,3111.7,3111.3,1.16573201]
[1765641246043,0.6547,3111.8,3111.4,0.1959]
[1765641246290,0.4588,3111.7,3111.5,6.42776794]
[1765641246581,0.001,3111.8,3111.6,0.58047529]
[1765641246986,0.001,3111.8,3111.6,1.03927529]
[1765641247343,0.4149,3111.7,3111.6,1.03927529]
[1765641247540,0.001,3111.8,3111.6,2.6265779]
[1765641249380,0.001,3111.8,3111.7,3.21367741]
[1765641249689,0.001,3111.8,3111.7,3.89624303]
[1765641249889,0.4159,3111.8,3111.7,3.89624303]
[1765641251150,0.8742,3111.8,3111.7,3.89624303]
[1765641261390,1.17336556,3111.8,3111.7,3.89624303]
[1765641263582,1.17348589,3111.8,3111.7,3.89624303]
[1765641267461,1.17348589,3111.8,3111.7,0.68256562]
[1765641272301,1.17348589,3111.8,3111.7,3.89624303]
[1765641272717,1.17348589,3111.8,3111.7,0.68256562]
[1765641273771,1.17348589,3111.8,3111.7,3.89624303]
[1765641275206,1.17348589,3111.8,3111.7,0.68256562]
[1765641275687,1.17348589,3111.8,3111.6,3.21372913]
[1765641275894,0.75748589,3111.7,3111.6,4.17897854]
[1765641278018,0.001,3111.8,3111.6,9.61974552]
[1765641278170,0.001,3111.8,3111.7,1.54617529]
[1765641278371,0.001,3111.8,3111.7,1.98381606]
[1765641278623,0.001,3111.8,3111.7,2.08033491]
[1765641278920,0.001,3111.8,3111.7,3.99604394]
[1765641279772,0.001,3111.8,3111.7,8.69751588]
[1765641279969,0.001,3111.8,3111.7,7.20972135]
[1765641285839,0.001,3111.8,3111.7,11.91119329]
[1765641287831,0.001,3111.8,3111.7,11.50568929]
[1765641288230,0.001,3111.8,3111.7,11.91119329]
[1765641288436,0.001,3111.8,3111.7,11.42349329]
[1765641288642,0.3948,3111.8,3111.7,11.42349329]
[1765641288950,0.3948,3111.8,3111.7,11.01798929]
[1765641289322,0.3948,3111.8,3111.7,8.62428026]
[1765641289524,0.8484,3111.8,3111.7,8.62428026]
[1765641290241,0.8484,3111.8,3111.7,8.62326498]
[1765641290648,0.8484,3111.8,3111.7,9.58896498]
[1765641290649,0.001,3111.8,3111.7,9.58896498]
[1765641290820,0.001,3111.8,3111.7,11.38998006]
[1765641291632,0.001,3111.8,3111.7,10.90228006]
[1765641292544,0.3948,3111.8,3111.7,5.7238234]
[1765641292743,0.8478,3111.8,3111.7,3.92280832]
[1765641296565,0.3948,3111.8,3111.7,3.92280832]
[1765641297662,0.8496,3111.8,3111.7,3.92280832]
[1765641298239,0.3948,3111.8,3111.7,3.92280832]
[1765641300741,0.8496,3111.8,3111.7,3.92280832]
[1765641302169,0.8496,3111.8,3111.7,0.12865562]
[1765641306282,0.8496,3111.8,3111.7,3.34233303]
[1765641306470,0.001,3111.8,3111.7,3.34233303]
[1765641307159,0.001,3111.8,3111.7,8.52318969]
[1765641307857,0.3965,3111.8,3111.7,3.34233303]
[1765641309971,0.001,3111.8,3111.7,3.82273303]
[1765641311171,0.001,3111.8,3111.7,3.34233303]
[1765641313253,0.001,3111.8,3111.7,3.82273303]
[1765641314064,0.8507,3111.8,3111.7,3.34233303]
[1765641315062,0.8507,3111.8,3111.7,0.12865562]
[1765641315263,0.8507,3111.8,3111.7,3.34233303]
[1765641317170,0.3965,3111.8,3111.7,3.34233303]
[1765641319178,0.001,3111.8,3111.7,4.31493303]
[1765641319953,0.001,3111.8,3111.7,3.82273303]
[1765641320154,0.001,3111.8,3111.7,8.52318969]
[1765641320752,0.001,3111.8,3111.7,3.34233303]
[1765641320969,0.001,3111.8,3111.7,8.04278969]
[1765641321179,0.001,3111.8,3111.7,8.52318969]
[1765641321652,0.3965,3111.8,3111.7,3.34233303]
[1765641322173,0.8517,3111.8,3111.7,3.34233303]
[1765641322373,0.3965,3111.8,3111.7,3.34233303]
[1765641326683,0.001,3111.8,3111.7,3.81823303]
[1765641326890,0.001,3111.8,3111.7,9.45094821]
[1765641327791,0.001,3111.8,3111.7,10.4369275]
[1765641331462,0.001,3111.8,3111.7,5.73614066]
[1765641331664,0.001,3111.8,3111.7,5.33063666]
[1765641331864,0.001,3111.8,3111.7,5.83763666]
[1765641332807,0.001,3111.8,3111.7,5.33963666]
[1765641334598,0.001,3111.8,3111.7,5.83763666]
[1765641334964,0.001,3111.8,3111.7,5.33963666]
[1765641338874,0.3818,3111.8,3111.7,4.42980832]
[1765641339227,0.8488,3111.8,3111.7,4.42980832]
[1765641340074,0.001,3111.8,3111.7,4.42980832]
[1765641340322,0.001,3111.8,3111.7,4.90570832]
[1765641341173,0.001,3111.8,3111.7,5.40370832]
[1765641341773,0.001,3111.8,3111.7,6.73854916]
[1765641344918,0.381,3111.8,3111.7,5.76464916]
[1765641345101,0.381,3111.8,3111.7,4.42980832]
[1765641345493,0.001,3111.8,3111.7,4.42980832]
[1765641345678,0.001,3111.8,3111.7,4.90570832]
[1765641346277,0.001,3111.8,3111.7,5.40370832]
[1765641347206,0.001,3111.8,3111.7,4.90570832]
[1765641347792,0.001,3111.8,3111.7,5.40370832]
[1765641348094,0.001,3111.8,3111.7,7.52699343]
[1765641348304,0.001,3111.8,3111.7,7.02899343]
[1765641349304,0.381,3111.8,3111.7,4.42980832]
[1765641350107,0.001,3111.8,3111.7,4.42980832]
[1765641351504,0.001,3111.8,3111.7,4.90570832]
[1765641351813,0.001,3111.8,3111.7,5.40370832]
[1765641353523,0.001,3111.8,3111.7,4.90570832]
[1765641355235,0.001,3111.8,3111.7,6.55891475]
[1765641356106,0.8499,3111.8,3111.7,6.08301475]
[1765641356315,0.8499,3111.8,3111.7,4.42980832]
[1765641358422,0.8499,3111.8,3111.7,3.92280832]
[1765641361405,0.8499,3111.8,3111.7,3.34233303]
[1765641361610,1.14929698,3111.8,3111.7,3.34233303]
[1765641362400,0.8499,3111.8,3111.7,3.34233303]
[1765641364239,0.3546,3111.8,3111.7,3.34233303]
[1765641364403,0.001,3111.8,3111.7,3.83843303]
[1765641364802,0.3663,3111.8,3111.7,3.34233303]
[1765641367227,0.001,3111.8,3111.7,3.34233303]
[1765641367394,0.001,3111.8,3111.7,3.83843303]
[1765641370129,0.001,3111.8,3111.7,4.31303303]
[1765641371835,0.001,3111.8,3111.7,5.86048067]
[1765641373822,0.001,3111.8,3111.7,5.96635596]
[1765641374020,0.001,3111.8,3111.7,6.44095596]
[1765641379432,0.001,3111.8,3111.7,5.96635596]
[1765641379637,0.001,3111.8,3111.7,6.84645996]
[1765641383941,0.001,3111.8,3111.7,16.2429228]
[1765641387117,0.001,3111.8,3111.7,11.54469138]
[1765641388326,0.001,3111.8,3111.7,11.55549138]
[1765641390136,0.001,3111.8,3111.7,16.2537228]
[1765641397434,0.001,3111.8,3111.7,16.25338942]
[1765641401963,0.001,3112.1,3111.9,0.868504]
[1765641402161,0.001,3112.1,3112.0,11.54554668]
[1765641402544,0.001,3112.1,3112.0,12.03094668]
[1765641402857,0.001,3112.1,3112.0,12.15959279]
[1765641403231,0.001,3112.6,3112.3,0.868504]
[1765641403436,0.001,3112.6,3112.5,10.38210875]
[1765641403643,0.001,3112.6,3112.5,11.98031963]
[1765641403843,0.001,3112.6,3112.5,9.75522855]
[1765641403844,0.8647,3112.6,3112.5,9.75522855]
[1765641408760,0.3766,3112.6,3112.5,9.75522855]
[1765641409577,0.001,3112.6,3112.5,14.91629328]
[1765641410072,0.001,3112.6,3112.5,10.21822855]
[1765641410365,0.001,3112.6,3112.5,14.91629328]
[1765641410572,0.001,3112.6,3112.5,15.40169328]
[1765641410774,0.001,3112.6,3112.5,14.91629328]
[1765641411570,0.001,3112.6,3112.5,10.21822855]
[1765641412272,0.001,3112.6,3112.5,9.75522855]
[1765641412477,0.8647,3112.6,3112.5,8.62001767]
[1765641415172,0.8595,3112.6,3112.5,8.62001767]
[1765641415476,0.3766,3112.6,3112.5,8.62001767]
[1765641416148,0.8595,3112.6,3112.5,8.62001767]
[1765641424152,0.3766,3112.6,3112.5,8.62001767]
[1765641425605,0.001,3112.6,3112.5,9.07411767]
[1765641425901,0.3829,3112.6,3112.5,8.62001767]
[1765641426901,0.8648,3112.6,3112.5,8.62001767]
[1765641427985,0.3829,3112.6,3112.5,8.62001767]
[1765641429009,0.8648,3112.6,3112.5,8.62001767]
[1765641429507,0.3829,3112.6,3112.5,8.62001767]
[1765641432119,0.001,3112.6,3112.5,8.03954238]
[1765641434424,0.3839,3112.6,3112.5,8.03868527]
[1765641434585,0.8648,3112.6,3112.5,8.03868527]
[1765641436694,0.001,3112.6,3112.5,8.03868527]
[1765641436891,0.001,3112.6,3112.5,9.71772982]
[1765641437295,0.3829,3112.6,3112.5,9.26362982]
[1765641444515,0.001,3112.6,3112.5,9.26362982]
[1765641444709,0.001,3112.6,3112.5,10.20852982]
[1765641446025,0.001,3112.6,3112.5,10.20812278]
[1765641446432,0.001,3112.6,3112.5,9.71732278]
[1765641446933,0.001,3112.6,3112.5,10.20182278]
[1765641447136,0.001,3112.6,3112.5,9.71732278]
[1765641454313,0.001,3112.6,3112.5,10.20182278]
[1765641464140,0.001,3112.6,3112.5,9.71732278]
[1765641466948,0.001,3112.6,3112.5,10.20182278]
[1765641469659,0.001,3112.6,3112.5,14.08182278]
[1765641470546,0.001,3112.6,3112.5,14.08170605]
[1765641470747,0.001,3112.6,3112.5,13.59720605]
[1765641470952,0.401,3112.6,3112.5,13.14310605]
[1765641472063,0.86,3112.6,3112.5,11.9181615]
[1765641472257,0.001,3112.6,3112.5,11.9181615]
[1765641472832,0.401,3112.6,3112.5,11.9181615]
[1765641478471,0.86,3112.6,3112.5,11.9181615]
[1765641480573,0.001,3112.6,3112.5,12.3861615]
[1765641480777,0.001,3112.6,3112.5,14.04419367]
[1765641481984,0.001,3112.6,3112.5,14.51839367]
[1765641484051,0.001,3112.6,3112.5,14.04419367]
[1765641487980,0.001,3112.6,3112.5,14.51839367]
[1765641489164,0.001,3112.6,3112.5,14.04419367]
[1765641490881,0.001,3112.6,3112.5,13.57619367]
[1765641493359,0.4014,3112.6,3112.5,13.57619367]
[1765641496276,0.8599,3112.6,3112.5,13.57619367]
[1765641496679,0.4014,3112.6,3112.5,13.57619367]
[1765641502467,0.001,3112.6,3112.5,14.04419367]
[1765641502773,0.001,3112.6,3112.5,14.51839367]
[1765641504788,0.001,3112.6,3112.5,14.04419367]
[1765641504994,0.001,3112.6,3112.5,14.52569367]
[1765641506194,0.001,3112.6,3112.5,14.52599277]
[1765641507867,0.001,3112.6,3112.5,14.52592655]
[1765641509391,0.3903,3112.6,3112.5,13.57642655]
[1765641510713,0.001,3112.6,3112.5,13.57642655]
[1765641511172,0.3911,3112.6,3112.5,13.57642655]
[1765641513996,0.3911,3112.6,3112.5,7.22147765]
[1765641514190,0.8672,3112.6,3112.5,11.91839438]
[1765641529023,0.3911,3112.6,3112.5,7.22147765]
[1765641529212,0.3911,3112.6,3112.5,11.91839438]
[1765641529409,0.8672,3112.6,3112.5,11.91839438]
[1765641529609,0.3911,3112.6,3112.5,11.91839438]
[1765641530314,0.8672,3112.6,3112.5,11.91839438]
[1765641530910,0.8672,3112.6,3112.5,7.22147765]
[1765641531110,0.8672,3112.6,3112.5,11.91839438]
[1765641532735,0.001,3112.6,3112.5,11.91839438]
[1765641533049,0.3903,3112.6,3112.5,11.91839438]
[1765641535126,0.8673,3112.6,3112.5,11.91839438]
[1765641541627,0.8673,3112.6,3112.5,11.91908434]
[1765641541847,0.001,3112.6,3112.5,17.97755049]
[1765641542027,0.001,3112.6,3112.5,19.45092978]
[1765641542229,0.001,3112.8,3112.7,10.38119267]
[1765641542533,0.001,3112.8,3112.7,14.71999267]
[1765641542702,0.001,3112.8,3112.7,15.20739267]
[1765641542902,0.001,3112.8,3112.7,17.58952573]
[1765641543332,0.001,3112.8,3112.7,20.8021707]
[1765641543898,0.001,3112.8,3112.7,15.61716401]
[1765641546321,0.3905,3112.8,3112.7,10.05525332]
[1765641546522,0.8791,3112.8,3112.7,12.49934452]
[1765641546936,0.8791,3112.8,3112.7,3.34126254]
[1765641547133,0.8791,3112.8,3112.7,8.03886923]
[1765641547630,0.8791,3112.8,3112.7,0.12861757]
[1765641547631,1.17851848,3112.8,3112.7,0.12861757]
[1765641547947,4.89806024,3112.8,3111.4,3.21394639]
[1765641548242,0.0049,3112.4,3112.3,0.96507552]
[1765641548412,0.29941848,3112.4,3112.3,0.96507552]
[1765641548617,1.17751848,3112.4,3112.3,0.96507552]
[1765641552435,1.17751848,3112.4,3111.9,3.21345781]
[1765641552746,0.4898,3112.0,3111.9,3.21345781]
[1765641553340,0.879,3112.0,3111.9,4.17854575]
[1765641555648,0.96508794,3112.6,3111.9,7.39201661]
[1765641555649,0.3892,3112.3,3111.9,7.39201661]
[1765641556029,0.4888,3112.0,3111.9,3.21345781]
[1765641556225,0.507,3112.5,3112.0,0.96508794]
[1765641556535,0.9966,3112.5,3112.0,5.66269463]
[1765641556742,0.3895,3112.1,3112.0,5.66269463]
[1765641557244,0.3895,3112.1,3112.0,7.91097429]
[1765641557450,0.3895,3112.1,3112.0,8.41797429]
[1765641559368,0.8781,3112.1,3112.0,3.7203676]
[1765641561184,0.3895,3112.1,3112.0,3.7203676]
[1765641561480,0.8781,3112.1,3112.0,3.7203676]
[1765641563980,0.3895,3112.1,3112.0,3.7203676]
[1765641564351,1.014,3112.5,3112.0,12.57754189]
[1765641564563,0.4896,3112.4,3112.0,12.09014189]
[1765641564762,0.3895,3112.1,3112.0,3.2133676]
[1765641565170,0.8781,3112.1,3112.0,3.2133676]
[1765641573189,0.8781,3112.1,3111.9,7.0934686]
[1765641573386,0.491,3112.0,3111.9,7.0934686]
[1765641576681,0.491,3112.0,3111.9,3.2134686]
[1765641577255,0.7907182,3112.0,3111.9,3.2134686]
[1765641582957,0.3046182,3112.0,3111.9,3.2134686]
[1765641583466,0.2997182,3112.0,3111.9,4.1924686]
[1765641583862,0.001,3112.8,3111.9,9.32601914]
[1765641584063,0.29973374,3112.7,3112.3,6.42611572]
[1765641584292,0.29973374,3112.6,3112.3,6.42611572]
[1765641584452,0.3929,3112.4,3112.3,3.21305786]
[1765641584655,0.29973374,3112.4,3112.3,3.69645786]
[1765641584889,0.29973374,3112.4,3112.3,4.19205786]
[1765641587386,0.001,3112.8,3112.3,8.50446521]
[1765641587593,0.29953307,3112.7,3112.4,0.4834]
[1765641587756,0.001,3112.8,3112.4,0.4834]
[1765641588461,0.001,3112.8,3112.5,6.4257028]
[1765641589061,0.001,3112.8,3112.5,6.9091028]
[1765641589585,0.4974,3112.6,3112.5,3.2128514]
[1765641589970,0.8791,3112.6,3112.5,3.2128514]
[1765641591281,0.8791,3112.6,3112.3,6.42601827]
[1765641591492,0.0038,3112.4,3112.3,7.09296041]
[1765641591707,0.001,3112.8,3112.3,7.09296041]
[1765641591997,0.785323,3112.7,3112.3,7.09296041]
[1765641592165,0.4861,3112.7,3112.3,7.09296041]
[1765641592793,0.4861,3112.7,3112.3,10.30601827]
[1765641592999,0.3929,3112.4,3112.3,7.09296041]
[1765641593500,0.8781,3112.4,3112.3,7.09296041]
[1765641594291,0.8781,3112.4,3112.3,7.09305786]
[1765641595495,0.8781,3112.4,3112.0,0.508]
[1765641595791,0.483,3112.1,3112.0,3.21330966]
[1765641596295,0.879,3112.1,3112.0,3.21330966]
[1765641597801,0.879,3112.1,3111.9,3.21347086]
[1765641598307,0.004,3112.0,3111.9,3.21347086]
[1765641598484,0.4616,3112.0,3111.9,3.21347086]
[1765641599273,0.4616,3112.0,3111.8,7.09353107]
[1765641599476,0.4172,3111.9,3111.8,7.09353107]
[1765641599868,0.8748,3111.9,3111.8,7.09353107]
[1765641600508,0.8748,3111.9,3111.8,3.21353107]
[1765641601596,1.17395241,3111.9,3111.4,3.88]
[1765641601795,0.4576,3111.8,3111.4,3.88]
[1765641602997,0.1859,3112.6,3111.7,0.4988]
[1765641603294,0.80614151,3112.5,3111.8,3.88]
[1765641603471,0.29914151,3112.4,3111.8,3.88]
[1765641603673,0.4283,3111.9,3111.8,3.88]
[1765641603886,0.72740558,3111.9,3111.4,6.42797454]
[1765641604091,0.4573,3111.8,3111.4,6.42797454]
[1765641604289,0.4573,3111.8,3111.4,6.89947454]
[1765641604989,0.4576,3111.8,3111.4,6.42797454]
[1765641605201,0.4576,3111.8,3111.4,3.21398727]
[1765641605892,0.4576,3111.8,3111.4,6.42797454]
[1765641606284,0.4283,3111.5,3111.4,3.21398727]
[1765641606987,0.8856,3111.5,3111.3,7.09408087]
[1765641607301,0.0046,3111.4,3111.3,7.09408087]
[1765641607502,0.4622,3111.4,3111.3,7.09408087]
[1765641609200,0.0046,3111.4,3111.3,3.21408087]
[1765641609501,0.4622,3111.4,3111.3,3.21408087]
[1765641610087,0.0046,3111.4,3111.3,3.21408087]
[1765641610408,0.4576,3111.9,3111.3,5.21541645]
[1765641610582,0.29866068,3111.8,3111.5,5.19990296]
[1765641610789,0.9646,3112.1,3111.5,5.19990296]
[1765641610979,0.4283,3111.6,3111.4,0.96516867]
[1765641611174,0.0046,3111.5,3111.3,6.42817144]
[1765641611376,0.0046,3111.5,3111.3,7.39277144]
[1765641612279,0.4576,3112.7,3111.4,11.45998121]
[1765641612477,0.4576,3112.7,3112.2,0.4988]
[1765641612677,0.78214151,3112.3,3111.7,4.70110296]
[1765641612877,1.18534151,3112.3,3111.6,0.4715]
[1765641613081,0.70183353,3112.2,3111.9,0.508]
[1765641613311,0.80614151,3112.3,3112.0,3.2133676]
[1765641613312,0.29914151,3112.3,3112.0,3.2133676]
[1765641613492,0.29914151,3112.3,3112.2,9.8976544]
[1765641613677,0.29914151,3112.3,3112.2,5.1982272]
[1765641613903,0.29914151,3112.3,3112.2,5.6697272]
[1765641614079,0.29914151,3112.3,3112.2,5.96886871]
[1765641614279,0.29914151,3112.3,3112.2,7.2084291]
[1765641615404,0.29914151,3112.3,3112.2,10.4215902]
[1765641615915,0.29914151,3112.3,3112.2,5.250663]
[1765641616411,0.29914151,3112.3,3112.2,5.722163]
[1765641623416,0.29914151,3112.3,3112.2,5.250663]
[1765641623616,0.29914151,3112.3,3112.2,5.722163]
[1765641623921,0.29914151,3112.3,3112.2,4.01110261]
[1765641626094,1.18464151,3112.3,3112.2,3.51230261]
[1765641627590,0.29914151,3112.3,3112.2,4.00350261]
[1765641629423,0.29914151,3112.3,3112.2,4.45760261]
[1765641629987,0.29914151,3112.3,3112.2,13.85432995]
[1765641630223,0.29914151,3112.3,3112.2,15.882417]
[1765641631947,0.29914151,3112.3,3112.2,16.287921]
[1765641633219,0.29914151,3112.3,3112.2,20.74839629]
[1765641644313,0.001,3112.8,3112.3,0.98597929]
[1765641644508,0.001,3112.8,3112.7,8.81421264]
[1765641644710,0.001,3112.8,3112.7,10.01690909]
[1765641644913,0.001,3112.8,3112.7,10.14553327]
[1765641645937,0.001,3112.8,3112.7,10.60153327]
[1765641646142,0.001,3112.8,3112.7,19.76037223]
[1765641648943,0.001,3112.8,3112.7,24.45552853]
[1765641649958,0.001,3112.8,3112.7,19.75395749]
[1765641651823,0.001,3113.0,3112.7,22.96660246]
[1765641652025,0.001,3113.0,3112.9,10.87399189]
[1765641653024,0.8709,3113.0,3112.9,0.58047529]
[1765641653351,0.8709,3113.0,3112.9,5.27563159]
[1765641653551,0.3833,3113.0,3112.9,9.97078789]
[1765641653846,0.001,3113.0,3112.9,13.68092645]
[1765641654016,0.001,3113.0,3112.9,16.14311051]
[1765641655072,0.001,3113.0,3112.9,16.63071051]
[1765641655350,0.001,3113.0,3112.9,21.39531451]
[1765641659346,0.001,3113.0,3112.9,17.51531451]
[1765641659975,0.001,3113.4,3113.0,8.36515001]